Cogmind - Beta 16.1 @@@ ROGUE MODE // 2026.03.04 @ 20:17:36 Player: parasect Result: Self-destructed Performance ------------- Evolutions (5) 2500 Regions Visited (23) 4600 Robots Destroyed (257) 1285 Value Destroyed (9719) 9719 Prototype IDs (51) 1020 Alien Tech Used (2) 400 Bonus (6137) 6137 TOTAL SCORE: 25661 Bonus ------- High Alert Combat Kills 556 Follower Combat Kills 2729 Awakened Behemoth Slayer 1000 Entered Garrisons 200 Network Hubs Disabled 200 Met Imprinter 300 Acquired ECA 300 Met Warlord at Base 500 MAIN.C Attacked Warlord 500 Warlord Defense Kills 1536 Built Enhanced Grunts 300 A7 Reached Mainframe 300 Met R17 at Cetus 500 Friendly Fire -2784 Cogmind --------- Core Integrity 977/1000 Matter 300/300 Energy 523/700 System Corruption 1% Temperature Cool (0) Movement Treading (160) Location -5/Warlord Parts ------- > --- POWER (2) -------- Vortex Chain Reactor > --- PROPULSION (6) --- Heavy Treads Heavy Treads Centrium Heavy Treads > --- UTILITY (7) ------ Improved Cooling System Huge Storage Unit Advanced Signal Interpreter Core Analyzer Centrium Medium Armor Plating Thermal Defense Suite (fused) Advanced Remote Force Field > --- WEAPON (3) ------- Precision Phase Gun Advanced KE Penetrator Antimatter Cannon > --- INVENTORY (25) --- Reinforced Deuterium Engine Centrium Heavy Treads Centrium Heavy Treads Advanced Cryofiber Web Advanced Energy Well (500) Matter Compressor (250) Experimental Sensor Array Long-range Terrain Scanner Improved Weapon Cycler Transmission Jammer Centrium Medium Armor Plating Centrium Medium Armor Plating Improved Powered Armor EM Shield Ghost Barrier High-powered Tractor Beam Phasing AFG Advanced KE Penetrator Advanced KE Penetrator Antimatter Cannon RU-N14's Throwing Claymores v3 (4) RU-N14's Throwing Claymores v3 (4) CR-A16's Behemoth Slayer Peak State ------------ > --- POWER ------------ Vortex Chain Reactor > --- PROPULSION ------- Heavy Treads Heavy Treads Centrium Heavy Treads > --- UTILITY ---------- Huge Storage Unit Experimental Sensor Array Advanced Signal Interpreter Core Analyzer Centrium Medium Armor Plating Thermal Defense Suite Advanced Remote Force Field > --- WEAPON ----------- Advanced KE Penetrator RU-N14's Throwing Claymores v3 CR-A16's Behemoth Slayer > --- INVENTORY -------- Reinforced Deuterium Engine Centrium Heavy Treads Centrium Heavy Treads Advanced Cryofiber Web Improved Cooling System Advanced Energy Well Matter Compressor Long-range Terrain Scanner Improved Weapon Cycler Transmission Jammer Centrium Medium Armor Plating Centrium Medium Armor Plating Improved Powered Armor EM Shield Ghost Barrier High-powered Tractor Beam Phasing AFG Advanced KE Penetrator Advanced KE Penetrator Antimatter Cannon RU-N14's Throwing Claymores v3 RU-N14's Throwing Claymores v3 RU-N14's Throwing Claymores v3 [Rating: 148] Favorites ----------- Power Enhanced Nuclear Core Engine Reinforced Deuterium Engine Power Core Enhanced Nuclear Core Reactor Quantum Reactor Propulsion Light Treads Treads Light Treads Leg Aluminum Leg Utility Huge Storage Unit Device Experimental Sensor Array Storage Huge Storage Unit Processor Improved Signal Interpreter Hackware Improved Hacking Suite Protection Light Armor Plating Weapon Heavy Assault Rifle Energy Gun Precision Phase Gun Energy Cannon Cooled Particle Cannon Ballistic Gun Heavy Assault Rifle Ballistic Cannon Antimatter Cannon Launcher Rocket Launcher Special Weapon Remote Datajack Impact Weapon Powered Hammer Slashing Weapon Ripper Piercing Weapon CR-A16's Behemoth Slayer Special Melee Weapon Advanced Datajack Build | -11 -10 -10 -9 -9 -8 -8 -8 -7 -7 -7 -7 -6 -6 -6 -6 -6 -6 -5 -5 -5 -5 -5 -5 ------- Run | Yrd Mat Min Mat Min Mat Gar Mat Fac Low Low Zio Pro Fac Ext Cet Arc Hub Fac Was Fac Upp Upp War Slots Evolved 10 | . . . 2 . 2 . . 2 . . . . 2 . . . . 2 . . . . . Power . | . . . . . . . . . . . . . . . . . . . . . . . . Propulsion 4 | . . . 1 . . . . 1 . . . . 2 . . . . . . . . . . Utility 5 | . . . 1 . 1 . . 1 . . . . . . . . . 2 . . . . . Weapon 1 | . . . . . 1 . . . . . . . . . . . . . . . . . . Parts Attached 213 | 2 14 8 24 2 14 24 4 9 1 4 6 13 17 21 10 10 4 1 5 7 3 1 9 Power 18 | . 2 1 2 . . 4 . 2 . . 1 . 1 3 1 . . . . . . . 1 Engine 12 | . 2 1 2 . . 3 . 1 . . . . 1 2 . . . . . . . . . Core 4 | . . . . . . 1 . 1 . . 1 . . 1 . . . . . . . . . Reactor 2 | . . . . . . . . . . . . . . . 1 . . . . . . . 1 Propulsion 57 | . 8 . 6 . 6 9 2 2 . 1 . 2 5 7 3 4 . . . 2 . . . Treads 51 | . 3 . 5 . 6 9 2 2 . 1 . 2 5 7 3 4 . . . 2 . . . Leg 6 | . 5 . 1 . . . . . . . . . . . . . . . . . . . . Wheel . | . . . . . . . . . . . . . . . . . . . . . . . . Hover . | . . . . . . . . . . . . . . . . . . . . . . . . Flight . | . . . . . . . . . . . . . . . . . . . . . . . . Utility 71 | 1 3 3 6 2 4 6 2 3 . . 3 5 5 5 3 5 1 . 2 4 3 1 4 Device 28 | 1 1 . 2 1 2 1 . 1 . . 2 2 2 3 1 3 . . . 1 1 . 4 Storage 6 | . 1 . 1 . . . 1 . . . . 1 1 . . . . . . 1 . . . Processor 8 | . . . . . . . . 2 . . . . . 1 . . 1 . 1 1 2 . . Hackware 3 | . . . . . 1 . 1 . . . . . . . . . . . . 1 . . . Protection 26 | . 1 3 3 1 1 5 . . . . 1 2 2 1 2 2 . . 1 . . 1 . Artifact . | . . . . . . . . . . . . . . . . . . . . . . . . Weapon 67 | 1 1 4 10 . 4 5 . 2 1 3 2 6 6 6 3 1 3 1 3 1 . . 4 Energy Gun 10 | . . 1 4 . 1 . . . . . . 1 1 . 1 . . . 1 . . . . Energy Cannon 6 | . . . . . . . . . . . . 2 1 1 . . . . 1 . . . 1 Ballistic Gun 25 | 1 1 1 4 . 1 5 . . . 1 . 2 1 3 2 . 2 1 . . . . . Ballistic Cannon 10 | . . 1 . . . . . . 1 1 . 1 2 2 . . . . 1 1 . . . Launcher 4 | . . 1 1 . . . . 1 . . . . . . . . 1 . . . . . . Special Weapon 4 | . . . . . . . . . . . 1 . . . . . . . . . . . 3 Impact Weapon 2 | . . . 1 . 1 . . . . . . . . . . . . . . . . . . Slashing Weapon 1 | . . . . . . . . . . 1 . . . . . . . . . . . . . Piercing Weapon 2 | . . . . . . . . . . . 1 . 1 . . . . . . . . . . Special Melee Weapon 3 | . . . . . 1 . . 1 . . . . . . . 1 . . . . . . . Unidentified Prototypes 25 | . . . 2 1 . . . 1 . 1 1 2 4 . 5 . . . 3 1 . . 4 Corrupted Parts 3 | . . . . . . . . . . . . . . . . 1 2 . . . . . . System Corruption 21 | . . . . . . . . . . . . . . . . 14 7 . . . . . . Parts Lost 27 | . . 6 3 . 1 6 . . . . . 4 3 4 . . . . . . . . . Power 2 | . . 1 . . . 1 . . . . . . . . . . . . . . . . . Propulsion 9 | . . 1 1 . . . . . . . . 2 1 4 . . . . . . . . . Utility 8 | . . 2 2 . 1 2 . . . . . 1 . . . . . . . . . . . Weapon 8 | . . 2 . . . 3 . . . . . 1 2 . . . . . . . . . . Highest Loss Streak 6 | . . 6 2 . 1 1 . . . . . 2 2 2 . . . . . . . . . To Critical Strikes 1 | . . . . . . . . . . . . . 1 . . . . . . . . . . Average Backups 22 | 3 12 17 20 25 24 24 24 24 24 24 24 24 22 24 23 22 23 22 22 22 22 22 22 Power . | 1 1 . . 1 1 1 1 1 1 1 . . 1 1 1 1 1 1 1 1 1 1 1 Propulsion 5 | 2 4 6 5 10 9 10 9 7 8 7 6 5 3 4 2 2 2 2 2 2 2 2 2 Utility 10 | . 4 5 5 4 7 8 8 8 9 10 11 11 12 13 12 14 13 12 11 11 12 13 13 Weapon 5 | . 2 3 7 8 6 4 4 5 5 5 5 5 4 6 7 5 7 7 8 7 6 6 6 Tool/Special . | . . . . . . . . . . . . . . . . . . . . . . . . Unused Backups 55 | 2 5 1 11 . 2 . 3 1 1 5 . 1 1 2 3 . 1 . . 2 . 1 13 Power 4 | . 1 . 1 . . . . 1 . . . . . . . . . . . . . . 1 Propulsion 12 | . 2 . 6 . . . 2 . . . . . . 1 . . . . . . . . 1 Utility 27 | . 2 1 2 . 1 . 1 . . 3 . 1 1 1 1 . 1 . . 2 . 1 9 Weapon 10 | 2 . . 1 . 1 . . . . 2 . . . . 2 . . . . . . . 2 Tool/Special 2 | . . . 1 . . . . . 1 . . . . . . . . . . . . . . Average Slot Usage (%) 94 | . 99 93 98 100 98 99 100 99 99 98 92 97 99 99 90 85 93 85 91 87 83 83 79 Engine 5 | . 14 13 11 11 9 8 9 4 . . . . . 8 10 6 6 5 5 5 5 5 2 Core 3 | . . . . . . . . 2 7 7 7 14 11 3 . . . . . . . . . Reactor 1 | . . . . . . . . . . . . . . . 1 6 6 5 5 5 5 5 4 Treads 27 | . 19 27 31 33 27 27 27 30 30 29 28 27 36 36 35 30 31 27 27 20 16 16 16 Device 11 | . 3 6 9 11 8 4 9 10 14 14 13 9 5 12 12 15 16 13 16 11 15 15 16 Storage 7 | . 14 14 11 11 9 9 9 7 7 7 7 7 6 6 6 6 6 5 5 5 5 5 5 Processor 5 | . . . . . . . . 7 7 7 7 7 6 6 6 6 6 5 10 11 11 11 11 Hackware 4 | . . . . . 8 9 14 11 7 7 7 7 3 . . . . . . 4 5 5 2 Protection 5 | . 9 7 11 11 9 13 3 . . . . 4 8 5 5 1 1 5 5 4 . . 2 Energy Gun 2 | . . 5 6 11 9 1 . . . . . . . 1 . . . . 1 5 5 5 1 Ballistic Gun 11 | . 28 16 14 11 16 24 27 17 13 7 7 10 11 9 2 3 12 11 5 5 . 1 5 Ballistic Cannon 2 | . . . . . . . . . 1 7 3 . 2 3 1 1 5 5 5 2 5 3 . Piercing Weapon 1 | . . . . . . . . . . . 3 4 1 . 1 4 . . . 1 4 4 3 Peak Build Rating 148 | 7 9 13 18 29 31 29 29 44 45 47 57 61 67 72 105 104 108 112 121 136 136 136 148 Average Rating 62 | 6 7 9 15 19 27 24 27 41 44 45 47 53 62 66 70 93 105 111 112 128 134 134 139 On Entrance 59 | 6 7 9 10 18 21 27 25 29 37 40 46 46 60 61 62 102 104 108 112 118 131 125 135 Avg Prop Armor Cover (%) 4 | . . . 5 . . . . . . . . . . . . . . . 3 . . . . Naked Turns . | . . . . . . . . . . . . . . . . . . . . . . . . Heaviest Build 170 | 14 51 58 98 102 107 114 107 106 114 107 114 120 133 146 156 156 156 156 157 157 154 158 170 Greatest Support 220 | 20 40 40 60 60 60 60 60 80 80 80 80 82 123 139 164 170 170 170 170 220 220 220 220 Greatest Overweight (x) 2 | . 2 2 2 1 1 1 1 1 1 1 1 1 1 1 1 1 . . 1 . . . . Average Overweight (x) . | . . 1 . 1 1 1 1 1 1 1 1 1 . . . . . . . . . . . Largest Inventory Capacity 25 | 8 20 20 25 25 25 25 25 25 25 25 25 25 25 25 25 25 25 25 25 25 25 25 25 Average Capacity 24 | 8 16 20 22 25 25 25 25 25 25 25 25 25 25 25 25 25 25 25 25 25 25 25 25 Most Carried 25 | 6 18 19 25 25 25 25 25 25 25 25 25 25 25 25 25 25 25 25 25 25 25 25 25 Average Carried 23 | 3 12 17 20 24 24 24 24 24 24 24 24 24 22 24 24 24 25 24 24 24 24 24 24 Final Capacity 25 | 8 20 20 25 25 25 25 25 25 25 25 25 25 25 25 25 25 25 25 25 25 25 25 25 Final Carried 25 | 5 18 18 25 25 25 25 25 25 25 24 24 24 23 25 25 25 25 24 25 25 25 25 25 Class Distribution -------------------- 44% | Scavenger-Mutant 21% | Scavenger-Tank 11% | Scavenger-Skirmisher 10% | Mutant 3% | Commander-Tank 3% | Scavenger-Assassin 3% | Commander-Mutant Dominant Class ---------------- Mutant | -10/Materials Mutant | -10/Mines Scavenger-Mutant | -9/Materials Scavenger-Mutant | -9/Mines Scavenger-Tank | -8/Materials Scavenger-Tank | -8/Garrison Scavenger-Tank | -8/Materials Scavenger-Mutant | -7/Factory Scavenger-Mutant | -7/Lower Caves Scavenger-Mutant | -7/Lower Caves Scavenger-Mutant | -7/Zion Scavenger-Mutant | -6/Proximity Caves Scavenger-Skirmisher | -6/Factory Scavenger-Skirmisher | -6/Extension Commander-Mutant | -6/Cetus Commander-Mutant | -6/Archives Commander-Tank | -6/Hub_04(d) Scavenger-Tank | -5/Factory Scavenger-Tank | -5/Waste Scavenger-Tank | -5/Factory Scavenger-Assassin | -5/Upper Caves Scavenger-Mutant | -5/Upper Caves Scavenger-Mutant | -5/Warlord Resources | -11 -10 -10 -9 -9 -8 -8 -8 -7 -7 -7 -7 -6 -6 -6 -6 -6 -6 -5 -5 -5 -5 -5 -5 ----------- Run | Yrd Mat Min Mat Min Mat Gar Mat Fac Low Low Zio Pro Fac Ext Cet Arc Hub Fac Was Fac Upp Upp War Matter Collected 11874 | 251 543 496 788 81 539 1163 98 255 167 232 155 419 654 2217 374 286 394 . 986 548 515 429 284 Remotely 826 | . . . . . . . . . . . . . . 633 . . . . . . . . 193 Salvage Created 11744 | 159 904 96 1637 211 1028 1363 122 255 76 259 . 399 728 1715 153 288 286 . 918 205 340 241 361 Parts 552 | 14 49 6 98 13 58 85 11 12 . 2 . 17 39 64 8 20 5 . . 14 12 6 19 Haulers Intercepted 17 | . 2 . 6 . 3 . 1 1 . . . 1 3 . . . . . . . . . . Recyclers Shooed 11 | . 1 . 5 . 1 . . . . 1 . . 3 . . . . . . . . . . Parts Field Recycled . | . . . . . . . . . . . . . . . . . . . . . . . . Retrieved Matter . | . . . . . . . . . . . . . . . . . . . . . . . . Parts Self-Destructed 35 | . . . . . . . . . . 3 3 11 . . . . . . . . 12 6 . Prevented . | . . . . . . . . . . . . . . . . . . . . . . . . Parts Restored . | . . . . . . . . . . . . . . . . . . . . . . . . Kills | -11 -10 -10 -9 -9 -8 -8 -8 -7 -7 -7 -7 -6 -6 -6 -6 -6 -6 -5 -5 -5 -5 -5 -5 ------- Run | Yrd Mat Min Mat Min Mat Gar Mat Fac Low Low Zio Pro Fac Ext Cet Arc Hub Fac Was Fac Upp Upp War Combat Hostiles Destroyed 182 | . 19 7 22 6 17 30 2 2 . . . 7 8 25 1 . 5 . 4 2 4 6 15 Guns 114 | . 19 2 16 6 17 26 2 2 . . . . 4 9 . . 3 . . 1 4 2 1 Cannons 33 | . . 2 . . . . . . . . . 1 4 15 1 . . . 2 1 . 4 3 AOE 33 | . . 3 6 . . 4 . . . . . 5 . . . . 2 . 2 . . . 11 Classes Destroyed 19 | 2 6 1 3 . 2 1 . . . . . 2 . . . . . . 1 . . . 1 Worker 5 | . 2 . . 1 1 . . 1 . . . . . . . . . . . . . . . Builder 7 | . . . 1 . 1 . . . . . . . 2 3 . . . . . . . . . Tunneler 4 | 4 . . . . . . . . . . . . . . . . . . . . . . . Hauler 17 | . 2 . 6 . 3 . 1 1 . . . 1 3 . . . . . . . . . . Recycler 15 | 1 . . 7 . 2 . . . . . . . . 4 . . . . . 1 . . . Operator 11 | . 2 . 1 . . . . . . . . . . . . 8 . . . . . . . Drone 2 | . . . . . . . . . . . . 2 . . . . . . . . . . . Watcher 13 | . 3 . 3 . . 1 1 2 . . . . . 2 . . 1 . . . . . . Swarmer 42 | . 5 3 4 3 5 4 2 . . . . . . 8 . . . . . . 2 . 6 Grunt 77 | . 14 2 10 4 3 15 . . . . . 4 1 7 . . 4 . . . 2 5 6 Brawler 7 | . . . 2 . . 2 . . . . . . . 3 . . . . . . . . . Duelist 2 | . . . . . 1 1 . . . . . . . . . . . . . . . . . Sentry 26 | . . . 6 . 6 4 . 1 . . . . 3 6 . . . . . . . . . Hunter 8 | . . . . . 2 1 . . . . . . 2 . . . 1 . . . . 1 1 Programmer 9 | . . . . . . 3 . 1 . . . . 2 . . . . . . 2 . . 1 Behemoth 2 | . . . . . . . . . . . . 1 . 1 . . . . . . . . . Compactor 4 | . . . . . . . . . . . . . . . . . . . 4 . . . . Cetus Guard 1 | . . . . . . . . . . . . . . . 1 . . . . . . . . Striker 1 | . . . . . . . . . . . . . . . . . . . . . . . 1 Packrat 5 | . . . . . . . . . . 3 . . . . . . . . . . 2 . . Assembled 2 | . . 2 . . . . . . . . . . . . . . . . . . . . . Thug 2 | . . . . . . . . . . . . 1 . . . . . . . . . . 1 Savage 1 | . . . . . . . . . . . . . . . . . . . . . . . 1 Best Kill Streak 10 | 3 4 3 6 2 5 7 2 2 . . . 2 3 4 1 5 3 . 3 1 2 5 10 Combat Bots Only 10 | . 4 3 4 2 5 7 2 1 . . . 2 2 4 1 . 2 . 3 1 2 5 10 Max Kills in Single Turn 6 | 1 2 2 2 1 2 3 1 1 . 1 . 1 2 2 1 1 1 . 1 1 1 1 6 Gunslinging 1 | . . . . . 1 1 . . . . . . . . . . . . . . . . . Exploded 5 | . . 2 2 . . 3 . . . . . 1 . . . . 1 . 1 . . . 5 Melee . | . . . . . . . . . . . . . . . . . . . . . . . . Uniques/NPCs Destroyed 1 | . . . . . . . . . . . . . . . 1 . . . . . . . . A7 (-6/Cetus) Combat | -11 -10 -10 -9 -9 -8 -8 -8 -7 -7 -7 -7 -6 -6 -6 -6 -6 -6 -5 -5 -5 -5 -5 -5 -------- Run | Yrd Mat Min Mat Min Mat Gar Mat Fac Low Low Zio Pro Fac Ext Cet Arc Hub Fac Was Fac Upp Upp War Hostile Shots Fired 975 | . 71 44 60 9 72 132 12 49 19 . . 56 140 189 17 3 18 . . 2 . 38 44 Missed 260 | . 22 6 17 2 18 38 1 11 5 . . 8 37 65 3 2 3 . . 1 . 4 17 Hits 715 | . 49 38 43 7 54 94 11 38 14 . . 48 103 124 14 1 15 . . 1 . 34 27 Melee 9 | . . . . . 3 2 . . . . . . . 4 . . . . . . . . . Projectile 706 | . 49 38 43 7 51 92 11 38 14 . . 48 103 120 14 1 15 . . 1 . 34 27 AOE 25 | . . 23 . . . . . . . . . . . . . . . . . 2 . . . Critical Strikes 29 | . . . 3 . 2 6 . . 2 . . 3 3 4 4 . . . . 1 . 1 . Part Disruptions 1 | . . . . . . 1 . . . . . . . . . . . . . . . . . Damage Taken 9156 | . 508 1007 564 88 921 1441 70 163 251 . . 1171 1074 1031 219 13 126 . . 38 9 304 158 Core 762 | . 42 150 70 10 117 40 4 8 61 . . 67 88 54 . . 28 . . . . 23 . Absorbed by Shields 1592 | . . . . . . 28 36 140 48 . . 24 . 545 174 13 131 . . 40 10 253 150 Reduced by Siege Mode 63 | . . . . . . . . . . . . . . . . 4 3 . . . . 56 . Redirected to Shielding 15 | . . . 15 . . . . . . . . . . . . . . . . . . . . Ignored by Resistances 530 | . . . . . 32 96 . 10 73 . . . 175 . . . . . . . 5 99 40 Regen/Repaired (Parts) 483 | . 77 . 100 . 166 . . . . . . . 134 . . . . . 6 . . . . Core Remaining (%) 72 | 100 . 23 . 80 . . 70 . . . . 80 . . . . 80 . . . . . . Volleys Fired 744 | 9 93 30 89 13 47 98 8 8 29 8 15 14 60 95 17 4 26 . 18 19 12 20 12 Largest 3 | 2 2 2 2 2 3 3 3 3 1 1 1 1 3 3 1 3 3 . 3 3 3 3 3 Hottest 171 | 60 40 68 85 79 102 102 69 69 37 37 5 90 107 108 90 103 103 . 105 171 162 162 162 Shots Fired 1566 | 18 186 51 155 28 134 248 24 24 29 8 15 15 127 252 19 12 39 . 49 45 27 44 17 Gun 1181 | 18 186 38 147 28 134 246 24 24 2 . . 1 89 131 . 8 13 . 17 33 14 22 6 Cannon 319 | . . 11 . . . . . . 27 8 . 3 37 121 19 4 22 . 17 12 13 22 3 Launcher 42 | . . 2 8 . . 2 . . . . . 11 . . . . 4 . 15 . . . . Special 24 | . . . . . . . . . . . 15 . 1 . . . . . . . . . 8 Kinetic 1217 | 13 186 49 101 14 93 219 24 24 29 8 . 1 98 183 . 12 35 . 34 34 19 36 5 Thermal 270 | . . . 38 14 41 27 . . . . . 3 28 69 19 . . . . 11 8 8 4 Explosive 50 | . . 2 8 . . 2 . . . . . 11 . . . . 4 . 15 . . . 8 Electromagnetic 13 | 5 . . 8 . . . . . . . . . . . . . . . . . . . . Robot Hit Streak 35 | 6 9 6 9 4 18 22 6 8 . . 9 5 8 11 5 6 9 . 35 9 5 10 5 Robot Miss Streak 13 | 3 4 5 3 3 2 3 4 1 . . 2 3 13 13 2 2 1 . 2 3 1 2 2 Penetration Max 1 | . . . . . . . . . . . . . 1 1 . . 1 . . . . . . Secondary Targets 12 | . 2 . . . 4 6 . . . . . . . . . . . . . . . . . Max Gunslinging Chain 1 | . 1 . . . 1 1 . . . . . . . . . . . . . . . . . Shots Hit Robots 969 | 9 105 27 99 15 102 155 12 20 2 6 7 13 68 147 18 22 16 . 44 29 15 25 13 Core Hits 517 | 7 46 13 58 8 40 63 5 9 . 1 . 28 27 107 8 8 13 . 16 11 9 10 30 Critical Kills 13 | . 1 2 . . . . . 1 . . . . . 6 . . 2 . . . . . 1 Critical Parts Destroyed 17 | . 2 2 . . . 1 . . . 1 . . 1 6 . 2 1 . . . . 1 . Critical Strikes 50 | . 3 4 . 1 . 1 . 1 . 1 . 1 4 13 2 8 3 . . 1 2 2 3 Burn 3 | . . . . 1 . . . . . . . . . . . . . . . 1 . 1 . Destroy 31 | . 3 4 . . . 1 . . . . . . 1 13 . 4 3 . . . . 1 1 Blast 2 | . . . . . . . . . . . . . 2 . . . . . . . . . . Smash 2 | . . . . . . . . 1 . 1 . . . . . . . . . . . . . Sever 1 | . . . . . . . . . . . . . . . . . . . . . . . 1 Impale 11 | . . . . . . . . . . . . 1 1 . 2 4 . . . . 2 . 1 Melee Attacks 156 | . . . 1 . 15 9 . 18 12 18 1 8 12 10 6 14 . . . 9 12 8 3 Impact 67 | . . . 1 . 15 9 . 17 12 13 . . . . . . . . . . . . . Slashing 5 | . . . . . . . . . . 5 . . . . . . . . . . . . . Piercing 81 | . . . . . . . . . . . 1 8 12 10 6 12 . . . 9 12 8 3 Sneak Attacks 43 | . . . . . 1 . . 3 . 4 . 1 6 5 6 12 . . . 2 3 . . Combat Hostiles . | . . . . . . . . . . . . . . . . . . . . . . . . Follow-up Attacks . | . . . . . . . . . . . . . . . . . . . . . . . . Damage Inflicted 28324 | 126 1223 481 1819 279 1769 2628 191 469 155 514 . 1484 1926 3635 810 1109 730 . 2809 886 593 656 4032 Guns 12713 | 126 1223 169 1421 259 1601 2425 191 262 . . . 27 1111 1818 . 197 251 . 371 634 190 331 106 Cannons 3722 | . . 151 . . . . . . . . . 33 265 1435 515 103 94 . 576 78 105 325 42 Explosions 7552 | . . 147 374 . . 203 . . . . . 1238 . . . . 385 . 1862 . . . 3343 Melee 3943 | . . . . . 168 . . 188 155 514 . 186 550 372 295 809 . . . 174 298 . 234 Ramming 87 | . . 14 24 20 . . . 19 . . . . . 10 . . . . . . . . . Kinetic 12965 | 86 1223 320 1027 151 1075 2221 191 262 . . . 27 1321 2276 . 300 345 . 947 487 128 486 92 Thermal 3328 | . . . 292 108 526 204 . . . . . 33 55 977 515 . . . . 225 167 170 56 Explosive 7552 | . . 147 374 . . 203 . . . . . 1238 . . . . 385 . 1862 . . . 3343 Electromagnetic 142 | 40 . . 102 . . . . . . . . . . . . . . . . . . . . Impact 890 | . . . . . 168 . . 188 155 379 . . . . . . . . . . . . . Slashing 442 | . . . . . . . . . . 135 . . . . . . . . . . . . 307 Piercing 2918 | . . . . . . . . . . . . 186 550 372 295 809 . . . 174 298 . 234 Highest Corruption 14 | . . . 4 4 . 5 5 . . . . 3 . 7 7 14 7 . . 5 5 5 5 Average Corruption 4 | . . . 4 4 . 3 5 . . . . 3 . 6 7 7 5 . . 2 5 5 1 Corruption Purged 21 | . . . . . . . . . . . . . . . . 21 . . . . . . . Corruption Blocked . | . . . . . . . . . . . . . . . . . . . . . . . . Effects 317 | . . . 2 18 . 56 6 . . . . 18 . 87 18 16 . . . 9 42 43 2 Message Errors 82 | . . . 1 4 . 18 . . . . . 1 . 25 6 3 . . . 4 8 11 1 Matter Fused 49 | . . . . 1 . 9 3 . . . . 2 . 12 2 2 . . . 2 8 8 . Heat Flow Errors 41 | . . . . 5 . 3 . . . . . 2 . 13 . 2 . . . 1 6 8 1 Energy Discharges 46 | . . . . 1 . 11 1 . . . . 3 . 10 5 2 . . . . 10 3 . Parts Rejected 3 | . . . . . . 2 . . . . . . . 1 . . . . . . . . . Parts Fused 6 | . . . . 1 . . . . . . . 2 . . . 1 . . . 1 1 . . Data Loss (minor) 37 | . . . . 4 . 4 1 . . . . 5 . 9 . 4 . . . . 4 6 . Data Loss (major) 17 | . . . . . . 4 1 . . . . 2 . 4 2 2 . . . . 1 1 . Misfires 20 | . . . . 2 . 3 . . . . . 1 . 5 2 . . . . 1 3 3 . Alerts 8 | . . . 1 . . 1 . . . . . . . 2 1 . . . . . 1 2 . Weapon Failures 8 | . . . . . . 1 . . . . . . . 6 . . . . . . . 1 . Overload Shots 12 | . . . . . . . . . . . . . . 5 6 . . . . . . . 1 Overflow Damage 1369 | . . 17 . . 64 . . 61 124 386 . 8 164 23 55 203 . . . . 110 . 154 Projectiles . | . . . . . . . . . . . . . . . . . . . . . . . . Explosions 161 | . . 17 . . . . . . . . . 8 . . . . . . . . . . 136 Melee 1208 | . . . . . 64 . . 61 124 386 . . 164 23 55 203 . . . . 110 . 18 Knockbacks 17 | . . . . . 1 . . . . 2 . . 1 6 . 1 1 . . . 1 4 . Impact 4 | . . . . . 1 . . . . 2 . . . 1 . . . . . . . . . Kinetic 13 | . . . . . . . . . . . . . 1 5 . 1 1 . . . 1 4 . Secondary . | . . . . . . . . . . . . . . . . . . . . . . . . Self-Inflicted Damage 32 | . . . . . . 32 . . . . . . . . . . . . . . . . . Shots 1 | . . . . . . 1 . . . . . . . . . . . . . . . . . Rammed 10 | . . 4 2 2 . . . 1 . . . . . 1 . . . . . . . . . Targets Rammed 11 | . . 4 3 2 . . . 1 . . . . . 1 . . . . . . . . . Kicked . | . . . . . . . . . . . . . . . . . . . . . . . . Crushed 1 | . . . 1 . . . . . . . . . . . . . . . . . . . . Highest Temperature 420 | . 18 187 90 218 352 297 12 9 . . . 420 331 255 . 220 . . . 357 398 346 211 Average Temperature 84 | . 6 61 25 52 96 84 4 5 . . . 121 94 83 . 100 . . . 101 106 107 72 Received Heat Transfer 2847 | . 189 57 222 24 261 525 9 46 . . . 907 171 253 . . 32 . . 6 4 123 18 Effects 14 | . . . . . . 6 . . . . . 3 1 . . . . . . 1 1 1 1 Shutdowns 4 | . . . . . . . . . . . . 2 . . . . . . . . 1 1 . Energy Bleed 4 | . . . . . . . . . . . . 1 1 . . . . . . 1 . . 1 Interference 6 | . . . . . . 6 . . . . . . . . . . . . . . . . . Siege Activations 15 | . . . . . . . . . . . . . . . . 2 1 . 3 2 2 2 3 Total Turns 197 | . . . . . . . . . . . . . . . . 8 5 . 74 4 13 69 24 Longest Duration 57 | . . . . . . . . . . . . . . . . 6 5 . 37 2 12 57 12 Martial Activations . | . . . . . . . . . . . . . . . . . . . . . . . . Shielding Activations . | . . . . . . . . . . . . . . . . . . . . . . . . Robots Disrupted . | . . . . . . . . . . . . . . . . . . . . . . . . Combat Hostiles . | . . . . . . . . . . . . . . . . . . . . . . . . Robots Corrupted 4 | . . . . . 1 . . . 1 2 . . . . . . . . . . . . . Combat Hostiles 1 | . . . . . . . . . 1 . . . . . . . . . . . . . . Parts Fried 5 | . . . . . 4 . . 1 . . . . . . . . . . . . . . . Impact Corruptions 14 | . . . . . 3 . . 2 2 7 . . . . . . . . . . . . . Robots Melted . | . . . . . . . . . . . . . . . . . . . . . . . . Combat Hostiles . | . . . . . . . . . . . . . . . . . . . . . . . . Parts Melted 7 | . . . . 1 3 . . . . . . . . 3 . . . . . . . . . Heat Transferred 5611 | . . . 650 296 1110 444 . . . . . 50 111 1480 545 . . . . 333 222 296 74 Parts Sabotaged . | . . . . . . . . . . . . . . . . . . . . . . . . Parts Stolen . | . . . . . . . . . . . . . . . . . . . . . . . . Parts Stripped . | . . . . . . . . . . . . . . . . . . . . . . . . Power Chain Reactions . | . . . . . . . . . . . . . . . . . . . . . . . . Alert | -11 -10 -10 -9 -9 -8 -8 -8 -7 -7 -7 -7 -6 -6 -6 -6 -6 -6 -5 -5 -5 -5 -5 -5 ------- Run | Yrd Mat Min Mat Min Mat Gar Mat Fac Low Low Zio Pro Fac Ext Cet Arc Hub Fac Was Fac Upp Upp War Maximum Alert Level 5 | . 1 . . . . 5 3 1 . . . . . 3 2 1 2 1 . 2 . . . Low Security (%) 68 | 100 75 100 100 100 100 8 . 77 . . . . 100 75 . 52 84 . 100 40 . . . Level 1 12 | . 24 . . . . 4 . 22 . . . . . 13 . 47 5 100 . 58 . . . Level 2 8 | . . . . . . 22 62 . . . . . . 9 100 . 10 . . . . . . Level 3 4 | . . . . . . 21 37 . . . . . . 2 . . . . . . . . . Level 4 3 | . . . . . . 22 . . . . . . . . . . . . . . . . . Level 5 3 | . . . . . . 20 . . . . . . . . . . . . . . . . . High Security . | . . . . . . . . . . . . . . . . . . . . . . . . Max Security . | . . . . . . . . . . . . . . . . . . . . . . . . Peak Influence 2157 | 15 269 93 177 106 126 2157 1051 298 . . . . 150 861 564 320 626 266 99 459 . . . Initial 1051 | . 3 18 20 59 22 78 1051 298 . . . . 150 6 478 203 11 266 89 . . . . Average 262 | 3 153 12 81 34 60 1040 806 116 . . . . 33 157 502 184 111 261 20 190 . . . Influence Increases 10872 | 25 591 150 746 266 657 2159 65 143 10 5 . 242 477 1604 372 257 898 . 66 1229 287 140 483 Destroy 0b10 Robot/C 4980 | . 380 100 440 200 380 660 40 40 . . . 180 160 800 160 80 320 . . 400 180 120 340 Destroy 0b10 Robot/NC 425 | 25 45 . 90 5 35 5 10 20 10 5 . 15 25 50 10 40 15 . . 10 5 . 5 Destroy Leader 834 | . 80 20 128 40 126 30 14 26 . . . 20 76 86 . . 66 . . 82 20 20 . Allied During Kill 1828 | . . . . 21 8 18 . . . . . 27 . 404 170 120 366 . . 474 82 . 138 Successful Hack 250 | . 11 . 12 . 21 32 . 45 . . . . 37 14 . . . . . 78 . . . Select Force Hacks 110 | . 30 . 30 . . . . . . . . . . . . . 50 . . . . . . Disable Machine 300 | . . 15 . . 45 30 . . . . . . . 135 15 15 15 . . 30 . . . Anti-Garrison Action 1250 | . . . . . . 1250 . . . . . . . . . . . . . . . . . Destroy Structure 550 | . . 15 31 . 12 119 1 12 . . . . 29 40 17 2 66 . 66 140 . . . Advance Influence 150 | . . . . . . . . . . . . . 150 . . . . . . . . . . Partial Spotted 15 | . . . . . . 15 . . . . . . . . . . . . . . . . . Lose Combat Pursuer 180 | . 45 . 15 . 30 . . . . . . . . 75 . . . . . 15 . . . Influence Decreases 10553 | 20 547 146 646 361 595 122 1566 799 10 4 1 242 464 762 719 731 389 287 322 1003 487 166 164 Entered New Map 2949 | . 2 31 33 94 36 42 1106 358 . . 1 . . 7 377 305 23 277 167 . 84 6 . Time Decay 5727 | 20 545 115 499 227 395 . 160 441 10 4 . 232 440 535 262 386 212 10 155 482 363 160 74 Lost Part 154 | . . . 10 . 10 60 . . . . . 10 24 40 . . . . . . . . . Lost Ally 851 | . . . . 40 20 20 . . . . . . . 180 80 40 120 . . 221 40 . 90 Purge Threat 872 | . . . 104 . 134 . 300 . . . . . . . . . 34 . . 300 . . . Squads Dispatched 26 | . 4 . 1 1 3 . . 2 . . . . 4 3 . . 6 . . 2 . . . Investigation 9 | . 2 . 1 1 2 . . . . . . . . . . . 3 . . . . . . Extermination 7 | . . . . . . . . 2 . . . . 2 . . . 1 . . 2 . . . Reinforcement 9 | . 2 . . . 1 . . . . . . . 2 3 . . 1 . . . . . . Assault 1 | . . . . . . . . . . . . . . . . . 1 . . . . . . Garrison . | . . . . . . . . . . . . . . . . . . . . . . . . Intercept . | . . . . . . . . . . . . . . . . . . . . . . . . Searches Triggered . | . . . . . . . . . . . . . . . . . . . . . . . . Construction Impeded 2 | . . . . . . . . . . . . . . 1 . . 1 . . . . . . Haulers Reinforced 2 | . . . . . . . . . . . . . 2 . . . . . . . . . . Active Scanning Responses . | . . . . . . . . . . . . . . . . . . . . . . . . Cargo Convoy Interrupts . | . . . . . . . . . . . . . . . . . . . . . . . . Stealth | -11 -10 -10 -9 -9 -8 -8 -8 -7 -7 -7 -7 -6 -6 -6 -6 -6 -6 -5 -5 -5 -5 -5 -5 --------- Run | Yrd Mat Min Mat Min Mat Gar Mat Fac Low Low Zio Pro Fac Ext Cet Arc Hub Fac Was Fac Upp Upp War Distress Signals 19 | . 1 1 1 . 2 1 . 1 . . . . . 3 2 . 5 . . . . . 2 Communications Jammed . | . . . . . . . . . . . . . . . . . . . . . . . . Distress Signals . | . . . . . . . . . . . . . . . . . . . . . . . . Times Spotted 326 | . 40 10 26 9 26 35 5 4 1 . . 10 9 46 10 4 10 . 7 9 6 6 53 Peak Tracking Total 24 | . 4 3 4 3 5 4 2 2 1 . . 5 2 6 5 1 4 . 3 2 3 5 24 Tactical Retreats 10 | . 2 1 1 . 1 . . . . . . . . 4 . . . . . 1 . . . Traps | -11 -10 -10 -9 -9 -8 -8 -8 -7 -7 -7 -7 -6 -6 -6 -6 -6 -6 -5 -5 -5 -5 -5 -5 ------- Run | Yrd Mat Min Mat Min Mat Gar Mat Fac Low Low Zio Pro Fac Ext Cet Arc Hub Fac Was Fac Upp Upp War Traps Triggered 15 | . 1 . . . 1 10 . . . . . . . . . . . 1 . 2 . . . Indirectly . | . . . . . . . . . . . . . . . . . . . . . . . . Trap Hack Attempts 9 | . . . . . 9 . . . . . . . . . . . . . . . . . . Triggered 1 | . . . . . 1 . . . . . . . . . . . . . . . . . . Disarmed . | . . . . . . . . . . . . . . . . . . . . . . . . Reprogrammed . | . . . . . . . . . . . . . . . . . . . . . . . . Reused . | . . . . . . . . . . . . . . . . . . . . . . . . Traps Extracted . | . . . . . . . . . . . . . . . . . . . . . . . . Installed . | . . . . . . . . . . . . . . . . . . . . . . . . Triggered . | . . . . . . . . . . . . . . . . . . . . . . . . Machines | -11 -10 -10 -9 -9 -8 -8 -8 -7 -7 -7 -7 -6 -6 -6 -6 -6 -6 -5 -5 -5 -5 -5 -5 ---------- Run | Yrd Mat Min Mat Min Mat Gar Mat Fac Low Low Zio Pro Fac Ext Cet Arc Hub Fac Was Fac Upp Upp War Machines Disabled 34 | . . 1 . . 3 12 . . . . . 1 . 11 1 1 1 . . 2 . . 1 Max in Single Turn 2 | . . 1 . . 1 2 . . . . . 1 . 1 1 1 . . . . . . 1 Garrison Access 3 | . . . . . . . . . . . . . 1 . . . 1 . . 1 . . . Garrison Relay 4 | . . . . . . 4 . . . . . . . . . . . . . . . . . Phase Generator 1 | . . . . . . 1 . . . . . . . . . . . . . . . . . Network Hub 1 | . . . . . . . . . . . . . . . . . 1 . . . . . . Machines Repaired . | . . . . . . . . . . . . . . . . . . . . . . . . Machines Dismantled . | . . . . . . . . . . . . . . . . . . . . . . . . Machines Sabotaged 1 | . . . . . . . . . . . . . . . . . 1 . . . . . . Overloaded Fab Kills . | . . . . . . . . . . . . . . . . . . . . . . . . Hacking | -11 -10 -10 -9 -9 -8 -8 -8 -7 -7 -7 -7 -6 -6 -6 -6 -6 -6 -5 -5 -5 -5 -5 -5 --------- Run | Yrd Mat Min Mat Min Mat Gar Mat Fac Low Low Zio Pro Fac Ext Cet Arc Hub Fac Was Fac Upp Upp War Machines Accessed 78 | . 7 . 7 1 10 4 1 6 . 1 . 2 5 11 . . 7 . . 13 . 1 2 Terminals 51 | . 5 . 4 . 6 4 1 3 . . . 1 2 11 . . 6 . . 8 . . . Fabricators 3 | . . . . . . . . 2 . . . . . . . . . . . 1 . . . Repair Stations 8 | . 1 . 1 . 2 . . . . . . . 2 . . . . . . 2 . . . Recycling Units 3 | . 1 . 1 . . . . 1 . . . . . . . . . . . . . . . Scanalyzers 3 | . . . 1 . 1 . . . . . . . . . . . . . . 1 . . . Garrison Access 4 | . . . . . 1 . . . . . . . 1 . . . 1 . . 1 . . . Total Hacks 192 | . 16 . 20 1 26 8 2 12 . 1 . 2 8 24 . . 16 . . 44 . 1 11 Successful 105 | . 10 . 14 1 16 3 2 8 . 1 . 2 6 4 . . 8 . . 18 . 1 11 Failed 86 | . 6 . 5 . 10 5 . 4 . . . . 2 20 . . 8 . . 26 . . . Catastrophic 17 | . 2 . 1 . 3 1 . . . . . . 2 2 . . 1 . . 5 . . . Database Lockouts 1 | . . . 1 . . . . . . . . . . . . . . . . . . . . Manual 61 | . 10 . 5 . 13 1 2 4 . . . . 2 6 1 . 10 . . 7 . . . Terminals 131 | . 11 . 10 . 17 8 2 7 . . . 1 3 24 . . 15 . . 33 . . . Fabricators 7 | . . . . . . . . 4 . . . . . . . . . . . 3 . . . Repair Stations 19 | . 3 . 2 . 5 . . . . . . . 4 . . . . . . 5 . . . Recycling Units 4 | . 2 . 1 . . . . 1 . . . . . . . . . . . . . . . Scanalyzers 11 | . . . 7 . 3 . . . . . . . . . . . . . . 1 . . . Garrison Access 5 | . . . . . 1 . . . . . . . 1 . . . 1 . . 2 . . . Terminal Hacks 60 | . 6 . 4 1 8 3 2 2 . 1 . 2 1 4 . . 2 . . 12 . 1 11 Record 2 | . . . . . . . . . . . . 2 . . . . . . . . . . . Part Schematic 1 | . 1 . . . . . . . . . . . . . . . . . . . . . . Robot Analysis 4 | . 2 . 2 . . . . . . . . . . . . . . . . . . . . Prototype ID Bank 13 | . 1 . . . . . . . . . . . . . . . . . . 1 . . 11 Open Door 8 | . . . . 1 . 1 . . . 1 . . . 4 . . . . . . . 1 . Open DSF 1 | . . . . . . . . . . . . . . . . . . . . 1 . . . Branch Access Points 1 | . . . . . . . . . . . . . . . . . . . . 1 . . . Emergency Access Points 2 | . . . . . . . . 1 . . . . . . . . . . . 1 . . . Garrison Index 1 | . . . . . 1 . . . . . . . . . . . . . . . . . . Alert Level 1 | . . . . . . . . . . . . . . . . . . . . 1 . . . Unreport Threat 10 | . . . 2 . 3 . 2 . . . . . . . . . 1 . . 2 . . . Locate Traps 4 | . 2 . . . 1 . . . . . . . . . . . . . . 1 . . . Security Status 1 | . . . . . . . . . . . . . . . . . . . . 1 . . . Patrol Status 1 | . . . . . . . . . . . . . . . . . . . . 1 . . . Recall Reinforcements 1 | . . . . . . . . . . . . . . . . . . . . 1 . . . Registered Components 3 | . . . . . . . . 1 . . . . 1 . . . . . . 1 . . . Zone Layout 4 | . . . . . 3 . . . . . . . . . . . 1 . . . . . . Patrol Navigation 1 | . . . . . . 1 . . . . . . . . . . . . . . . . . Security Stations 1 | . . . . . . 1 . . . . . . . . . . . . . . . . . Fabricator Hacks 2 | . . . . . . . . 1 . . . . . . . . . . . 1 . . . Network Status 2 | . . . . . . . . 1 . . . . . . . . . . . 1 . . . Repair Station Hacks 13 | . 2 . 2 . 4 . . . . . . . 3 . . . . . . 2 . . . Scan Component 8 | . 1 . 1 . 2 . . . . . . . 2 . . . . . . 2 . . . Repair 5 | . 1 . 1 . 2 . . . . . . . 1 . . . . . . . . . . Recycling Unit Hacks 1 | . . . . . . . . 1 . . . . . . . . . . . . . . . Retrieve Components 1 | . . . . . . . . 1 . . . . . . . . . . . . . . . Scanalyzer 8 | . . . 6 . 2 . . . . . . . . . . . . . . . . . . Insert Component 2 | . . . 2 . . . . . . . . . . . . . . . . . . . . Analyze 2 | . . . 2 . . . . . . . . . . . . . . . . . . . . Retrieve Study 4 | . . . 2 . 2 . . . . . . . . . . . . . . . . . . Garrison Access Hacks 4 | . . . . . 1 . . . . . . . 1 . . . 1 . . 1 . . . Unlock Access 1 | . . . . . 1 . . . . . . . . . . . . . . . . . . Seal Access 3 | . . . . . . . . . . . . . 1 . . . 1 . . 1 . . . Unauthorized Hacks 17 | . 2 . 2 . 1 . . 4 . . . . 1 . . . 5 . . 2 . . . Terminals 12 | . 1 . 1 . 1 . . 2 . . . . 1 . . . 5 . . 1 . . . Track 1 | . . . . . . . . . . . . . . . . . 1 . . . . . . Assimilate 2 | . . . . . . . . 1 . . . . . . . . 1 . . . . . . Botnet 6 | . 1 . 1 . 1 . . 1 . . . . 1 . . . . . . 1 . . . Sabotage 3 | . . . . . . . . . . . . . . . . . 3 . . . . . . Fabricators 3 | . . . . . . . . 2 . . . . . . . . . . . 1 . . . Liberate 2 | . . . . . . . . 1 . . . . . . . . . . . 1 . . . Haulers 1 | . . . . . . . . 1 . . . . . . . . . . . . . . . Repair Stations . | . . . . . . . . . . . . . . . . . . . . . . . . Recycling Units 2 | . 1 . 1 . . . . . . . . . . . . . . . . . . . . Tunnel 2 | . 1 . 1 . . . . . . . . . . . . . . . . . . . . Scanalyzers . | . . . . . . . . . . . . . . . . . . . . . . . . Garrison Access . | . . . . . . . . . . . . . . . . . . . . . . . . Data Cores Recovered . | . . . . . . . . . . . . . . . . . . . . . . . . Used . | . . . . . . . . . . . . . . . . . . . . . . . . Hacking Detections 50 | . 4 . 3 . 9 3 1 4 . . . . 3 8 . . 4 . . 11 . . . Full Trace Events 2 | . . . . . 1 1 . . . . . . . . . . . . . . . . . Feedback Events . | . . . . . . . . . . . . . . . . . . . . . . . . Feedback Blocked . | . . . . . . . . . . . . . . . . . . . . . . . . Robot Schematics Acquired 4 | . . . . . . . . . . . 4 . . . . . . . . . . . . Robots Built . | . . . . . . . . . . . . . . . . . . . . . . . . Authchips . | . . . . . . . . . . . . . . . . . . . . . . . . Time . | . . . . . . . . . . . . . . . . . . . . . . . . Total Robot Build Rating . | . . . . . . . . . . . . . . . . . . . . . . . . Part Schematics Acquired 17 | . 1 . 1 . . . . . . . 15 . . . . . . . . . . . . Parts Built . | . . . . . . . . . . . . . . . . . . . . . . . . Authchips . | . . . . . . . . . . . . . . . . . . . . . . . . Time . | . . . . . . . . . . . . . . . . . . . . . . . . Total Part Build Rating . | . . . . . . . . . . . . . . . . . . . . . . . . Part Studies Acquired 4 | . . . 2 . 2 . . . . . . . . . . . . . . . . . . Parts Repaired 5 | . 1 . 1 . 2 . . . . . . . 1 . . . . . . . . . . Time 235 | . 26 . 26 . 130 . . . . . . . 53 . . . . . . . . . . Parts Recycled . | . . . . . . . . . . . . . . . . . . . . . . . . Recycled Matter . | . . . . . . . . . . . . . . . . . . . . . . . . Retrieved Matter . | . . . . . . . . . . . . . . . . . . . . . . . . Retrieved Components 5 | . . . . . . . . 5 . . . . . . . . . . . . . . . Parts Scanalyzed 1 | . . . 1 . . . . . . . . . . . . . . . . . . . . Part Schematics Acquired 1 | . . . 1 . . . . . . . . . . . . . . . . . . . . Parts Damaged . | . . . . . . . . . . . . . . . . . . . . . . . . Bothacking | -11 -10 -10 -9 -9 -8 -8 -8 -7 -7 -7 -7 -6 -6 -6 -6 -6 -6 -5 -5 -5 -5 -5 -5 ------------ Run | Yrd Mat Min Mat Min Mat Gar Mat Fac Low Low Zio Pro Fac Ext Cet Arc Hub Fac Was Fac Upp Upp War Used RIF Installer . | . . . . . . . . . . . . . . . . . . . . . . . . Robots Hacked 13 | . . . . . . . . 1 . . 9 . 1 . . 2 . . . . . . . Non-combat 6 | . . . . . . . . 1 . . 2 . 1 . . 2 . . . . . . . Combat 7 | . . . . . . . . . . . 7 . . . . . . . . . . . . Robot Hacks Applied 13 | . . . . . . . . 1 . . 9 . 1 . . 2 . . . . . . . parse_system 9 | . . . . . . . . . . . 9 . . . . . . . . . . . . find_chute 2 | . . . . . . . . 1 . . . . 1 . . . . . . . . . . check_alert 2 | . . . . . . . . . . . . . . . . 2 . . . . . . . Relay Couplers Released 15 | . . . . . . 15 . . . . . . . . . . . . . . . . . Machine Destruction 15 | . . . . . . 15 . . . . . . . . . . . . . . . . . Fabnet Peak Effective % . | . . . . . . . . . . . . . . . . . . . . . . . . Robots Rewired 19 | . . . . . . . . . . . . . . 14 . . . . . . . . 5 Allies Hacked 1 | . . . . . . . . . . . . . . . . . . . . 1 . . . Hacks Repelled . | . . . . . . . . . . . . . . . . . . . . . . . . Allies | -11 -10 -10 -9 -9 -8 -8 -8 -7 -7 -7 -7 -6 -6 -6 -6 -6 -6 -5 -5 -5 -5 -5 -5 -------- Run | Yrd Mat Min Mat Min Mat Gar Mat Fac Low Low Zio Pro Fac Ext Cet Arc Hub Fac Was Fac Upp Upp War Total Allies 62 | . . . . 4 . 2 . . . . 3 . . 23 5 . . . 18 2 . . 5 Largest Group 19 | . . . . 3 1 2 . . . . 3 3 . 15 15 13 11 1 19 19 5 1 5 Highest-Rated Group 876 | . . . . 40 31 56 . . . . 90 90 . 563 876 688 623 96 734 734 190 46 263 Highest-Rated Ally 159 | . . . . 31 31 31 . . . . 31 31 . 159 159 96 96 96 96 96 50 46 68 Initial Warlord ECA Mod 10 | . . . . . . . 10 9 9 9 9 8 8 8 8 8 8 7 7 7 7 7 7 Total Orders 34 | . . . . . . . . . . . . . . 2 18 5 2 . 2 . . . 5 STAY 27 | . . . . . . . . . . . . . . 1 16 4 2 . 1 . . . 3 FOLLOW 6 | . . . . . . . . . . . . . . 1 2 1 . . 1 . . . 1 EXPLORE 1 | . . . . . . . . . . . . . . . . . . . . . . . 1 Ally Attacks 483 | . . . . 28 8 16 . . . . . 23 . 135 39 23 52 . 22 102 17 4 14 Total Damage 11993 | . . . . 297 124 315 . . . . . 313 . 2221 1362 724 1531 . 914 2489 813 69 821 Kills 89 | . . . . 4 2 3 . . . . . 5 . 16 9 4 14 . 2 19 5 . 6 Allies Corrupted 5 | . . . . . . . . . . . . . . . . . 2 . . 3 . . . Allies Melted . | . . . . . . . . . . . . . . . . . . . . . . . . Intel | -11 -10 -10 -9 -9 -8 -8 -8 -7 -7 -7 -7 -6 -6 -6 -6 -6 -6 -5 -5 -5 -5 -5 -5 ------- Run | Yrd Mat Min Mat Min Mat Gar Mat Fac Low Low Zio Pro Fac Ext Cet Arc Hub Fac Was Fac Upp Upp War Active Infowar (turns) 23754 | 40 426 755 1188 770 1010 . . 1074 1700 2262 2079 1988 1417 1421 . 50 563 29 934 1444 2053 1479 1072 Sensors 19290 | . . . . 1 . . . 1071 1700 2262 2079 1786 1380 1388 . 50 563 29 934 1444 2052 1479 1072 Terrain 1566 | . . . . . . . . . . . . 202 . . . . . . . 86 1278 . . Seismic 4188 | 40 426 755 1188 769 1010 . . . . . . . . . . . . . . . . . . Decoding 1 | . . . . . . . . . . . . . . . . . . . . . 1 . . T.N.C. 3 | . . . . . . . . 3 . . . . . . . . . . . . . . . Jamming 117 | . . . . . . . . . . . . . 37 33 . . . . . 47 . . . Robot Analysis Total 4 | . 2 . 2 . . . . . . . . . . . . . . . . . . . . Derelict Logs Recovered 8 | . . 1 . . . . . . 2 2 . 1 . . . . . . . . 1 1 . Drone Launches 10 | . . . . . . . . . . . . . . . . . . . . . . . 10 Drone Recoveries . | . . . . . . . . . . . . . . . . . . . . . . . . Exploration | -11 -10 -10 -9 -9 -8 -8 -8 -7 -7 -7 -7 -6 -6 -6 -6 -6 -6 -5 -5 -5 -5 -5 -5 ------------- Run | Yrd Mat Min Mat Min Mat Gar Mat Fac Low Low Zio Pro Fac Ext Cet Arc Hub Fac Was Fac Upp Upp War Turns Passed 33976 | 74 1569 1593 1806 774 1263 3033 321 1157 1740 2263 2094 2228 1626 2578 576 911 719 33 936 1506 2089 1562 1525 Spaces Moved 15521 | 31 579 608 767 357 472 1302 143 516 819 1042 1015 948 782 1113 233 313 408 19 495 851 1072 872 764 Core . | . . . . . . . . . . . . . . . . . . . . . . . . Treads 15306 | . 395 608 767 357 472 1302 143 516 819 1042 1015 948 782 1113 233 313 408 19 495 851 1072 872 764 Legs 215 | 31 184 . . . . . . . . . . . . . . . . . . . . . . Wheels . | . . . . . . . . . . . . . . . . . . . . . . . . Hover . | . . . . . . . . . . . . . . . . . . . . . . . . Flight . | . . . . . . . . . . . . . . . . . . . . . . . . Fastest Speed 120 | 120 120 240 160 200 200 200 200 200 200 200 200 200 157 160 154 154 154 154 154 152 160 160 160 Average Speed 183 | 120 202 240 181 200 200 200 200 200 200 200 200 202 167 163 188 154 154 154 155 156 160 160 160 Slowest Speed 320 | 120 260 320 240 200 200 200 200 200 200 200 200 206 206 224 213 232 154 154 236 160 160 160 160 Overloaded Moves . | . . . . . . . . . . . . . . . . . . . . . . . . Propulsion Burnouts . | . . . . . . . . . . . . . . . . . . . . . . . . Robots Hopped 1 | . . . . . . . . . . . . . . . 1 . . . . . . . . Potential Cave-ins . | . . . . . . . . . . . . . . . . . . . . . . . . Cave-ins Triggered . | . . . . . . . . . . . . . . . . . . . . . . . . Exploration Rate (%) 64 | 3 97 99 69 86 40 99 17 14 86 85 85 82 18 88 72 82 42 1 96 25 85 85 80 Regions Visited 23 Branch Regions 13 Pre-discovered Areas 8 | . 1 1 1 . . . . . 1 1 1 1 . . . . . . . . 1 . . Known Exits Taken 15 | . . . . 1 1 . . 1 1 1 1 1 1 1 1 1 1 . . 1 1 1 . Unknown Exits Taken 5 | 1 1 1 1 . . . 1 . . . . . . . . . . . . . . . . Scrap Searched 22 | . . 1 . 1 . . . . 2 2 5 4 . . . . . . . . 4 3 . Spaces Dug 109 | . . . 1 . 11 4 . 12 11 10 . 1 19 4 . . 11 . . 10 7 8 . Terrain Destroyed 701 | . . 26 23 . 11 159 . 12 21 11 . 61 28 43 1 2 65 . 76 19 16 28 99 Melee 73 | . . . 1 . 11 4 . 12 10 10 . . 4 4 . . . . . 6 5 6 . Projectile 156 | . . 6 . . . . . . 11 1 . 1 24 39 1 2 20 . 3 13 11 22 2 AOE 472 | . . 20 22 . . 155 . . . . . 60 . . . . 45 . 73 . . . 97 Terrain Rammed . | . . . . . . . . . . . . . . . . . . . . . . . . Walls Destroyed . | . . . . . . . . . . . . . . . . . . . . . . . . Machines Disabled . | . . . . . . . . . . . . . . . . . . . . . . . . Actions | -11 -10 -10 -9 -9 -8 -8 -8 -7 -7 -7 -7 -6 -6 -6 -6 -6 -6 -5 -5 -5 -5 -5 -5 --------- Run | Yrd Mat Min Mat Min Mat Gar Mat Fac Low Low Zio Pro Fac Ext Cet Arc Hub Fac Was Fac Upp Upp War Total 19442 | 52 813 687 1022 393 659 1526 162 595 870 1193 1071 1223 969 1642 348 711 462 23 622 970 1401 985 1043 Wait 1866 | 5 85 19 60 12 66 38 . 7 1 98 19 201 51 196 39 346 17 1 88 42 284 63 128 Move 15497 | 30 578 607 766 356 472 1300 142 515 818 1041 1014 947 781 1112 230 312 407 19 494 850 1071 871 764 Hop 1 | . . . . . . . . . . . . . . . 1 . . . . . . . . Pick Up 175 | 2 20 6 30 2 8 4 2 11 2 9 5 11 13 13 15 2 1 . 4 6 1 3 5 Fast Attach 80 | 1 . 2 7 2 2 4 . 2 2 2 2 4 3 6 5 9 . . 3 4 4 2 14 Attach 69 | 1 4 8 5 . 3 4 . 5 . . 3 7 5 8 6 3 . 1 3 1 . . 2 Detach 43 | 1 2 4 3 . 1 . . 4 . . 1 2 2 7 1 2 . . 4 1 2 . 6 Swap 338 | . 16 5 30 1 24 35 5 15 4 5 5 19 31 57 5 8 10 2 3 22 12 14 10 Drop 229 | 3 15 2 28 5 12 20 5 9 2 12 6 10 11 15 23 11 1 . 5 13 3 4 14 Fire 744 | 9 93 30 89 13 47 98 8 8 29 8 15 14 60 95 17 4 26 . 18 19 12 20 12 Melee 156 | . . . 1 . 15 9 . 18 12 18 1 8 12 10 6 14 . . . 9 12 8 3 Ram . | . . . . . . . . . . . . . . . . . . . . . . . . Kick . | . . . . . . . . . . . . . . . . . . . . . . . . Crush 11 | . . 4 3 2 . . . 1 . . . . . 1 . . . . . . . . . Escape Stasis 17 | . . . . . . 14 . . . . . . . . . . . . . 3 . . . Rewire 207 | . . . . . . . . . . . . . . 122 . . . . . . . . 85 Trap 9 | . . . . . 9 . . . . . . . . . . . . . . . . . . Miscellaneous . | . . . . . . . . . . . . . . . . . . . . . . . . Route ------- -11/Scrapyard -10/Materials (discovered 5 exits: *Mat x3 / [*Min x2]) -10/Mines (discovered 4 exits: *Mat x2 / [*Exi] / [*Sub]) -9/Materials (discovered 3 exits: *Mat / *Min x2) -9/Mines (discovered 3 exits: *Mat x2 / *Zio) -8/Materials (discovered 3 exits: *Fac / [*Sto] / Gar) -8/Garrison (discovered 3 exits: *Mat x3) -8/Materials (discovered 2 exits: *Fac / [*Sto]) -7/Factory -7/Lower Caves -7/Lower Caves (discovered 2 exits: *Fac / *Zio) -7/Zion -6/Proximity Caves -6/Factory (discovered 4 exits: Fac x2 / Low / *Ext) -6/Extension (discovered 2 exits: *Fac / *Cet) -6/Cetus (discovered 2 exits: *Fac / *Arc) -6/Archives (discovered 3 exits: *Fac / *Hub x2) -6/Hub_04(d) (discovered 2 exits: *Fac x2) -5/Factory -5/Waste -5/Factory (discovered 3 exits: *Fac / *Upp x2) -5/Upper Caves -5/Upper Caves (discovered 2 exits: *Fac / *War) -5/Warlord (discovered 1 exit: [*Pro]) History --------- Turn | Location | Event 21 | -11/Scrapyard | Discovered new exit (range 1) 75 | -11/Scrapyard | Entered Materials 315 | -10/Materials | Build established: Mutant 352 | -10/Materials | Discovered new exit (range 16) 426 | -10/Materials | Discovered new exit (range 10) 497 | -10/Materials | Discovered new exit (range 16) 820 | -10/Materials | Discovered new exit (range 9) 1113 | -10/Materials | Repaired Lgt. Treads 1444 | -10/Materials | Discovered new exit (range 12) 1644 | -10/Materials | Entered Mines 1645 | -10/Mines | Assembled infested the area 1650 | -10/Mines | Assisted by a Guerilla fighting off Assembled 1683 | -10/Mines | Met a Derelict bent on vengeance 1935 | -10/Mines | Core integrity fell below 50% 1978 | -10/Mines | Discovered new exit (range 15) 1991 | -10/Mines | Lost 6 parts (1p1n2u2w) 2290 | -10/Mines | Discovered new exit (range 7) 2568 | -10/Mines | Learned location of 1 exit from Materials 2676 | -10/Mines | Deemed a non-threat by the Exiles lab entrance 2679 | -10/Mines | Discovered new exit (range 5) 2852 | -10/Mines | Learned location of Storage (-8) 2901 | -10/Mines | Build established: Scavenger-Mutant 3048 | -10/Mines | Discovered new exit (range 6) 3237 | -10/Mines | Entered Materials 3237 | -9/Materials | Evolved 2 slots: Propulsion x1, Utility x1 3238 | -9/Materials | Identified exit to Materials 3957 | -9/Materials | Central database locked down 4321 | -9/Materials | Repaired Lgt. Treads+ 4378 | -9/Materials | Discovered new exit (range 13) 4550 | -9/Materials | Discovered new exit (range 8) 5043 | -9/Materials | Entered Mines 5045 | -9/Mines | Assisted by bots powering up and referring to "LRC-V3" 5056 | -9/Mines | A Derelict revealed a hidden shortcut to a safe place 5137 | -9/Mines | Discovered exit to Materials (range 9) 5316 | -9/Mines | Discovered exit to Materials (range 6) 5333 | -9/Mines | Received a Rocket Launcher from a helpful Derelict 5445 | -9/Mines | Met a Derelict shopkeep closing up shop 5549 | -9/Mines | Found a damaged Exp. Sensor Array with a note attached 5554 | -9/Mines | Found Prototype Device 5554 | -9/Mines | Identified Exp. Sensor Array 5746 | -9/Mines | Received a Mining Laser from a helpful Derelict 5772 | -9/Mines | Build established: Mutant 5817 | -9/Mines | Entered Materials 5817 | -8/Materials | Accompanied by 1 ally 5817 | -8/Materials | Evolved 2 slots: Utility x1, Weapon x1 5897 | -8/Materials | Discovered new exit (range 14) 6116 | -8/Materials | Build established: Scavenger-Tank 6178 | -8/Materials | Repaired Exp. Sensor Array 6895 | -8/Materials | Repaired Imp. Medium Armor Plating 6990 | -8/Materials | Discovered new exit (range 14) 7080 | -8/Materials | Identified exit to Garrison 7080 | -8/Materials | Entered Garrison 7124 | -8/Garrison | Triggered checkpoint 7171 | -8/Garrison | Garrison Relay disabled 7396 | -8/Garrison | Destroyed 7 combat bots 7418 | -8/Garrison | Triggered checkpoint 7469 | -8/Garrison | Learned Materials security intel 7569 | -8/Garrison | Triggered checkpoint 7716 | -8/Garrison | Triggered checkpoint 7767 | -8/Garrison | Garrison Relay disabled 7803 | -8/Garrison | Discovered new exit (range 10) 7815 | -8/Garrison | Rescued a captive Derelict 7818 | -8/Garrison | Rescued a captive Derelict 8005 | -8/Garrison | Triggered checkpoint 8111 | -8/Garrison | Triggered checkpoint 8151 | -8/Garrison | Garrison Relay disabled 8244 | -8/Garrison | Discovered new exit (range 12) 8354 | -8/Garrison | Triggered checkpoint 8472 | -8/Garrison | Triggered checkpoint 8506 | -8/Garrison | Garrison Relay disabled 8544 | -8/Garrison | Discovered new exit (range 10) 8722 | -8/Garrison | Phase Generator disabled 9913 | -8/Garrison | Attempted to access garrison exit controls, blocked by remote lockdown 10113 | -8/Garrison | Entered Materials 10224 | -8/Materials | Discovered new exit (range 16) 10400 | -8/Materials | Discovered new exit (range 3) 10434 | -8/Materials | Entered Factory 10434 | -7/Factory | Evolved 2 slots: Propulsion x1, Utility x1 10744 | -7/Factory | Build established: Scavenger-Mutant 11078 | -7/Factory | Discovered new exit (range 6) 11088 | -7/Factory | Identified exit to Lower Caves 11591 | -7/Factory | Entered Lower Caves 11597 | -7/Lower Caves | Met a Warlord Commander 11598 | -7/Lower Caves | Learned location of Warlord (-5) 11599 | -7/Lower Caves | Warlord Commander delivered Encrypted Comm Array 11601 | -7/Lower Caves | Found Encrypted Comm Array 11690 | -7/Lower Caves | Learned 12 Factory zone layouts 12583 | -7/Lower Caves | Learned Factory garrison access intel 13203 | -7/Lower Caves | Discovered new exit (range 15) 13289 | -7/Lower Caves | Spotted B-75 Beast 13329 | -7/Lower Caves | Identified exit to Lower Caves 13331 | -7/Lower Caves | Entered another Lower Caves area 13522 | -7/Lower Caves | Discovered new exit (range 7) 13532 | -7/Lower Caves | Found DCF Scrap (15 items) 13573 | -7/Lower Caves | Learned location of Extension (-6) 13579 | -7/Lower Caves | Learned Factory security intel 15050 | -7/Lower Caves | Found Alien Artifact 15050 | -7/Lower Caves | Identified Core Expander 15050 | -7/Lower Caves | Installed Core Expander, added new Power slot 15499 | -7/Lower Caves | Discovered new exit (range 10) 15529 | -7/Lower Caves | Identified exit to Zion 15594 | -7/Lower Caves | Entered Zion 15721 | -7/Zion | Given A8's code to call for help 15822 | -7/Zion | Discovered new exit (range 16) 15850 | -7/Zion | Identified exit to Proximity Caves 16000 | -7/Zion | Build established: Scavenger-Skirmisher 16042 | -7/Zion | Found Prototype Device 16044 | -7/Zion | Identified Phasing AFG 16122 | -7/Zion | Found CR-A16's Pointy Stick 16196 | -7/Zion | Gained Derelict followers 16879 | -7/Zion | Build established: Scavenger-Mutant 17063 | -7/Zion | Met Imprinter 17688 | -7/Zion | Entered Proximity Caves 17688 | -6/Proximity Caves | Accompanied by 3 allies 17930 | -6/Proximity Caves | Spotter reported a threat 18292 | -6/Proximity Caves | Build established: Mutant 18691 | -6/Proximity Caves | Build established: Scavenger-Mutant 18914 | -6/Proximity Caves | Found Imp. Powered Armor 18936 | -6/Proximity Caves | Found Imp. Powered Armor 19413 | -6/Proximity Caves | Spotted B-75 Beast 19449 | -6/Proximity Caves | Revealed the true nature of CR-A16's Pointy Stick 19453 | -6/Proximity Caves | Destroyed B-75 Beast 19808 | -6/Proximity Caves | Found Alien Artifact 19815 | -6/Proximity Caves | Identified Dimensional Node Initializer 19815 | -6/Proximity Caves | Initialized slip node 19844 | -6/Proximity Caves | Discovered new exit (range 5) 19850 | -6/Proximity Caves | Identified exit to Factory 19856 | -6/Proximity Caves | Build established: Scavenger-Skirmisher 19916 | -6/Proximity Caves | Entered Factory 19916 | -6/Factory | Evolved 2 slots: Propulsion x2 19917 | -6/Factory | Identified exit to Factory 19917 | -6/Factory | Identified exit to Extension 19917 | -6/Factory | Identified exit to Lower Caves 19919 | -6/Factory | Loaded intel: 3 garrison access locations 21115 | -6/Factory | Repaired Broken Adv. Treads 21285 | -6/Factory | Build established: Scavenger-Mutant 21542 | -6/Factory | Entered Extension 22011 | -6/Extension | Rescued a captive Derelict 22011 | -6/Extension | Rescued a captive Derelict 22033 | -6/Extension | Rescued a captive Derelict 22034 | -6/Extension | Rescued a captive Derelict 22099 | -6/Extension | Lost 3 allies 22623 | -6/Extension | Rescued a captive Derelict 22736 | -6/Extension | Rescued a captive Derelict 23002 | -6/Extension | Build established: Scavenger-Skirmisher 23146 | -6/Extension | Spotted B-75 Beast 23165 | -6/Extension | Spotted B-75 Beast 23166 | -6/Extension | Allies destroyed B-75 Beast 23184 | -6/Extension | Destroyed B-75 Beast 23214 | -6/Extension | Lost 3 allies 23603 | -6/Extension | Rescued a captive Derelict 23603 | -6/Extension | Rescued a captive Derelict 23654 | -6/Extension | Rescued a captive Derelict 23869 | -6/Extension | Rescued A7 23986 | -6/Extension | Rescued a captive Derelict 24031 | -6/Extension | Discovered exit to Factory (range 10) 24033 | -6/Extension | Discovered new exit (range 6) 24048 | -6/Extension | Disrupted transfer network 24062 | -6/Extension | Identified exit to Cetus 24120 | -6/Extension | Entered Cetus 24120 | -6/Cetus | Accompanied by 14 allies (A7) 24125 | -6/Cetus | Acquired a Cetus Manufacturing Module code from A7 24149 | -6/Cetus | Spotted Cetus Guard 24149 | -6/Cetus | Spotted Cetus Guard 24153 | -6/Cetus | Spotted Cetus Guard 24155 | -6/Cetus | Allies destroyed Cetus Guard 24155 | -6/Cetus | Spotted Cetus Guard 24166 | -6/Cetus | Allies destroyed Cetus Guard 24168 | -6/Cetus | Allies destroyed Cetus Guard 24169 | -6/Cetus | Allies destroyed Cetus Guard 24191 | -6/Cetus | Lost 3 allies 24395 | -6/Cetus | Started Cetus Manufacturing Module 24420 | -6/Cetus | Manufactured an Enhanced Grunt 24430 | -6/Cetus | Escorted A7 to Cetus Mainframe 24445 | -6/Cetus | Manufactured an Enhanced Grunt 24454 | -6/Cetus | Discovered new exit (range 16) 24470 | -6/Cetus | Manufactured an Enhanced Grunt 24495 | -6/Cetus | Manufactured an Enhanced Grunt 24510 | -6/Cetus | Spotted Cetus Guard 24510 | -6/Cetus | Spotted Cetus Guard 24514 | -6/Cetus | Destroyed Cetus Guard 24515 | -6/Cetus | Spotted Cetus Guard 24515 | -6/Cetus | Spotted Cetus Guard 24519 | -6/Cetus | Allies destroyed Cetus Guard 24520 | -6/Cetus | Manufactured an Enhanced Grunt 24520 | -6/Cetus | Allies destroyed Cetus Guard 24546 | -6/Cetus | Discovered exit to Factory (range 15) 24556 | -6/Cetus | Met Revision 17 24615 | -6/Cetus | Murdered A7 24616 | -6/Cetus | Extracted ID and sensor layout for unrecognized location from A7's data core 24682 | -6/Cetus | Identified exit to Archives 24696 | -6/Cetus | Entered Archives 24696 | -6/Archives | Accompanied by 13 allies 24788 | -6/Archives | Discovered exit to Factory (range 15) 24903 | -6/Archives | Discovered new exit (range 16) 24943 | -6/Archives | Discovered new exit (range 16) 24977 | -6/Archives | System corruption reached 10% 25068 | -6/Archives | Build established: Commander-Mutant 25553 | -6/Archives | Identified exit to Hub_04(d) 25607 | -6/Archives | Entered Hub_04(d) 25607 | -6/Hub_04(d) | Accompanied by 11 allies 25745 | -6/Hub_04(d) | Build established: Commander-Tank 25784 | -6/Hub_04(d) | Discovered exit to Factory (range 6) 25897 | -6/Hub_04(d) | Discovered exit to Factory (range 3) 26242 | -6/Hub_04(d) | Network Hub disabled 26307 | -6/Hub_04(d) | First assault squad dispatched 26326 | -6/Hub_04(d) | Entered Factory 26326 | -5/Factory | Accompanied by 1 ally 26326 | -5/Factory | Evolved 2 slots: Utility x2 26359 | -5/Factory | Sucked down chute 26359 | -5/Factory | Entered Waste 26369 | -5/Waste | 1 allies followed down the chute 26403 | -5/Waste | Spotted C-40 Crusher 26405 | -5/Waste | Allies destroyed C-40 Crusher 26415 | -5/Waste | Spotted C-40 Crusher 26423 | -5/Waste | Allies destroyed C-40 Crusher 26479 | -5/Waste | Build established: Scavenger-Tank 26482 | -5/Waste | Spotted C-40 Crusher 26489 | -5/Waste | Destroyed C-40 Crusher 26533 | -5/Waste | Spotted C-40 Crusher 26540 | -5/Waste | Spotted C-40 Crusher 26544 | -5/Waste | Destroyed C-40 Crusher 26554 | -5/Waste | Spotted C-40 Crusher 26557 | -5/Waste | Destroyed C-40 Crusher 26567 | -5/Waste | Destroyed C-40 Crusher 26868 | -5/Waste | Discovered new exit (range 11) 26888 | -5/Waste | Build established: Scavenger-Mutant 26922 | -5/Waste | Warlord forces began an assault 27258 | -5/Waste | Identified exit to Factory 27295 | -5/Waste | Entered Factory 27295 | -5/Factory | Accompanied by 19 allies 27393 | -5/Factory | Identified exit to Upper Caves 27536 | -5/Factory | Watched by a mysterious "MATRIX" hacker. 27815 | -5/Factory | Lost 5 allies 28040 | -5/Factory | Build established: Scavenger-Tank 28224 | -5/Factory | Allied Derelicts emerged from ambush trap array 28441 | -5/Factory | Discovered new exit (range 15) 28466 | -5/Factory | Found Hvy. Insulated Plating 28801 | -5/Factory | Entered Upper Caves 28801 | -5/Upper Caves | Accompanied by 5 allies 29345 | -5/Upper Caves | Build established: Scavenger-Assassin 30555 | -5/Upper Caves | Encountered a Warlord checkpoint 30632 | -5/Upper Caves | Build established: Scavenger-Mutant 30716 | -5/Upper Caves | Discovered new exit (range 15) 30739 | -5/Upper Caves | Identified exit to Upper Caves 30890 | -5/Upper Caves | Entered another Upper Caves area 30890 | -5/Upper Caves | Accompanied by 1 ally 30941 | -5/Upper Caves | Discovered new exit (range 15) 30973 | -5/Upper Caves | Identified exit to Factory 32136 | -5/Upper Caves | Discovered new exit (range 4) 32139 | -5/Upper Caves | Identified exit to Warlord 32227 | -5/Upper Caves | Learned location of 2 exits from Factory 32452 | -5/Upper Caves | Entered Warlord 32491 | -5/Warlord | Discovered new exit (range 15) 32524 | -5/Warlord | System corruption cleaned by Quarantine Array 32740 | -5/Warlord | Found Prototype Special Weapon 32740 | -5/Warlord | Identified RU-N14's Throwing Claymores v3 32743 | -5/Warlord | Found RU-N14's Throwing Claymores v3 32746 | -5/Warlord | Found RU-N14's Throwing Claymores v3 32749 | -5/Warlord | Found RU-N14's Throwing Claymores v3 32772 | -5/Warlord | Found RU-N14's Throwing Claymores v3 32961 | -5/Warlord | Found Prototype Device 32961 | -5/Warlord | Identified Minesniffer Drone Bay 33181 | -5/Warlord | Found Prototype Reactor 33181 | -5/Warlord | Identified Vortex Chain Reactor 33191 | -5/Warlord | Found Prototype Hackware 33196 | -5/Warlord | Found Prototype Device 33196 | -5/Warlord | Identified System Purifier 33541 | -5/Warlord | Warlord's base attacked by MAIN.C 33561 | -5/Warlord | Met Warlord 33658 | -5/Warlord | Build established: Commander-Mutant 33870 | -5/Warlord | Spotted Striker 33873 | -5/Warlord | Spotted Striker 33874 | -5/Warlord | Spotted Striker 33891 | -5/Warlord | Warlord forces counterattacked 33897 | -5/Warlord | Destroyed Striker 33918 | -5/Warlord | Destroyed 10 combat bots 33922 | -5/Warlord | Lost 4 allies 33968 | -5/Warlord | Attacked by Warlord forces 33969 | -5/Warlord | Spotted Executioner 33977 | -5/Warlord | Self-destructed Last Messages --------------- 33968_ Slug penetrates ZG-AXJ(g). 33969_ ZG-AXJ(g) destroyed. 33969_ KH-G66(g) destroyed. 33969_ SN-JS3(g) reactivates. 33970_ The unstable cave ceiling collapses. 33970_ Slug penetrates RJ-5ZO(M). 33970_ Slug penetrates F3-M5R. 33970_ Slug penetrates LW-4PF(g). 33971_ Slug penetrates CB-9CP(g). 33972_ RJ-5ZO(M) destroyed. 33973_ Slug penetrates SN-JS3(g). 33973_ Slug penetrates Earth. 33973_ Slug penetrates SN-JS3(g). 33974_ Acquired 16 matter. 33974_ P-70 Sage resets Executioner, system corruption cleaned. 33976_ Slug penetrates OU-H6P(g). 33976_ Slug penetrates Blast Doors. 33976_ Slug penetrates SN-JS3(g). 33976_ SN-JS3(g) destroyed. Map ----- +----------------------------------------------------+ | ??#! !!#??# """#?????????????????????????????????? | | ??## ###??# "#?????????????????????????????????? | | ?###+###### X#?????????????????????????????????? | | ?# + "#?????????????????????????????????? | | ## ######?????????????????????????????????? | | #??????????????????????????????????????? | | ###+### #??????????????????????????????????????? | | # #????????????????????????????????? ?